[Event "DVM U20w 2019"]
[Site "Braunschweig"]
[Date "2019.12.27"]
[Round "2"]
[White "Pavlov, Liliane"]
[Black "Schmidt, Pauline"]
[Result "1-0"]
[ECO "E15"]
[WhiteElo "1623"]
[BlackElo "1628"]
[Annotator "NA"]
[PlyCount "54"]
[EventDate "2019.12.27"]
[EventType "team-tourn"]
[EventRounds "7"]
[EventCountry "GER"]
[SourceTitle "playchess.com"]
[Source "ChessBase"]
[SourceQuality "1"]
[WhiteTeam "SC Bavaria Regensburg"]
[BlackTeam "SG Blau-Weiß Stadtilm"]
[TimeControl "40/5400+30:1800+30"]

1. d4 {[%emt 0:00:00]} Nf6 {[%emt 0:00:00]} 2. c4 {[%emt 0:00:00]} e6 {[%emt 0:00:00]} 3. Nf3 {[%emt 0:00:00]} b6 {[%emt 0:00:00]} 4. g3 {[%emt 0:00:00]} Ba6 {[%emt 0:00:18]} 5. b3 {[%emt 0:00:36]} Bb4+ {[%emt 0:00:27]} 6. Bd2 {[%emt 0:00:30]} Be7 {[%emt 0:00:47]} 7. Nc3 {[%emt 0:00:49]} d5 {[%emt 0:02:27]} 8. cxd5 {[%emt 0:02:07]} exd5 {[%emt 0:02:29]} 9. Bg2 {[%emt 0:01:44]} Bb7 {[%emt 0:03:22]} 10. O-O {[%emt 0:00:16]} O-O {[%emt 0:00:30]} 11. Rc1 {[%emt 0:01:10]} a6 {[%emt 0:03:36]} 12. Re1 {[%emt 0:02:47]} Nbd7 {[%emt 0:06:27]} 13. Qc2 {[%emt 0:06:36]} Rc8 {[%emt 0:03:26]} 14. h3 {[%emt 0:03:03]} c5 {[%emt 0:07:52]} 15. Qb2 {[%emt 0:05:38]} cxd4 {[%emt 0:16:17]} 16. Nxd4 {[%emt 0:00:36]} Bc5 {[%emt 0:02:52]} 17. Na4 {[%emt 0:10:26]} b5 {[%emt 0:06:02]} 18. Nxc5 {[%emt 0:00:26]} Nxc5 {[%emt 0:00:43]} 19. Bb4 {[%emt 0:02:32]} Nfd7 {[%emt 0:03:11]} 20. Nf5 {[%emt 0:01:39]} Qg5 {[%emt 0:19:39]} 21. Nd6 {[%emt 0:04:05]} Rb8 {[%emt 0:08:34]} 22. Nxb7 {[%emt 0:05:58]} Nxb7 {[%emt 0:01:33]} 23. Bxf8 {[%emt 0:00:15]} Nxf8 {[%emt 0:00:08]} 24. Red1 {[%emt 0:00:23]} Ne6 {[%emt 0:03:54]} 25. Bxd5 {[%emt 0:03:25]} Ned8 {[%emt 0:04:20]} 26. Bxb7 {[%emt 0:01:36]} Nxb7 {[%emt 0:00:09]} 27. Rd7 {[%emt 0:02:55]} h6 {[%emt 0:00:12] normal} 1-0

[Event "DVM U20w 2019"]
[Site "Braunschweig"]
[Date "2019.12.27"]
[Round "2"]
[White "Rempe, Mieke"]
[Black "Jörs, Pia-Milena"]
[Result "0-1"]
[ECO "B18"]
[WhiteElo "1619"]
[BlackElo "1646"]
[Annotator "NA"]
[PlyCount "50"]
[EventDate "2019.12.27"]
[EventType "team-tourn"]
[EventRounds "7"]
[EventCountry "GER"]
[SourceTitle "playchess.com"]
[Source "ChessBase"]
[SourceQuality "1"]
[WhiteTeam "SK Doppelbauer Kiel"]
[BlackTeam "SG Güstrow/Teterow"]
[TimeControl "40/5400+30:1800+30"]

1. e4 {[%emt 0:00:00]} c6 {[%emt 0:00:00]} 2. d4 {[%emt 0:00:00]} d5 {[%emt 0:00:00]} 3. Nd2 {[%emt 0:00:34]} dxe4 {[%emt 0:00:01]} 4. Nxe4 {[%emt 0:00:15]} Bf5 {[%emt 0:00:16]} 5. Ng3 {[%emt 0:00:39]} Bg6 {[%emt 0:00:13]} 6. Nf3 {[%emt 0:00:44]} Nd7 {[%emt 0:02:33]} 7. Be3 {[%emt 0:02:33]} e6 {[%emt 0:00:31]} 8. Qd2 {[%emt 0:01:05]} Ngf6 {[%emt 0:01:55]} 9. O-O-O {[%emt 0:01:16]} Bd6 {[%emt 0:03:09]} 10. Bf4 {[%emt 0:03:07]} Qc7 {[%emt 0:01:12]} 11. Bxd6 {[%emt 0:01:31]} Qxd6 {[%emt 0:00:08]} 12. h4 {[%emt 0:00:53]} h6 {[%emt 0:01:28]} 13. h5 {[%emt 0:03:07]} Bh7 {[%emt 0:00:25]} 14. Ne2 {[%emt 0:02:51]} Qd5 {[%emt 0:06:20]} 15. Nc3 {[%emt 0:01:17]} Qa5 {[%emt 0:00:48]} 16. Rh4 {[%emt 0:03:37]} O-O-O {[%emt 0:09:38]} 17. g4 {[%emt 0:03:53]} Nd5 {[%emt 0:09:54]} 18. Nxd5 {[%emt 0:04:14]} Qxd5 {[%emt 0:01:25]} 19. Qc3 {[%emt 0:12:19]} Qxa2 {[%emt 0:15:31]} 20. Bc4 {[%emt 0:01:20]} Qa4 {[%emt 0:01:02]} 21. d5 {[%emt 0:00:43]} exd5 {[%emt 0:02:48]} 22. Bxd5 {[%emt 0:01:06]} Nf6 {[%emt 0:04:32]} 23. g5 {[%emt 0:06:29]} Qa1+ {[%emt 0:00:38]} 24. Kd2 {[%emt 0:00:06]} Rxd5+ {[%emt 0:00:15]} 25. Rd4 {[%emt 0:00:06]} Ne4+ {[%emt 0:00:37] normal} 0-1

[Event "DVM U20w 2019"]
[Site "Braunschweig"]
[Date "2019.12.27"]
[Round "2"]
[White "Sauer, Annika"]
[Black "Daoud, Shahnaz"]
[Result "1-0"]
[ECO "D05"]
[WhiteElo "1569"]
[BlackElo "1000"]
[Annotator "NA"]
[PlyCount "119"]
[EventDate "2019.12.27"]
[EventType "team-tourn"]
[EventRounds "7"]
[EventCountry "GER"]
[SourceTitle "playchess.com"]
[Source "ChessBase"]
[SourceQuality "1"]
[WhiteTeam "Leegebrucher SF"]
[BlackTeam "SK Lehrte 1919"]
[TimeControl "40/5400+30:1800+30"]

1. d4 d5 2. Nf3 Nf6 3. e3 e6 4. Bd3 Bd6 5. O-O Nbd7 6. b3 c6 7. Bb2 Ne4 8. Bxe4 dxe4 9. Nfd2 f5 10. Qh5+ {[%emt 0:32:01]} g6 {[%emt 0:07:51]} 11. Qe2 {[%emt 0:02:24]} Qf6 {[%emt 0:04:07]} 12. Nc4 {[%emt 0:09:27]} Bc7 {[%emt 0:01:16]} 13. d5 {[%emt 0:01:04]} Be5 {[%emt 0:01:22]} 14. Nxe5 {[%emt 0:01:51]} Nxe5 {[%emt 0:00:15]} 15. dxc6 {[%emt 0:01:42]} bxc6 {[%emt 0:01:03]} 16. Nd2 {[%emt 0:02:38]} a5 {[%emt 0:04:09]} 17. Nc4 {[%emt 0:04:09]} Ba6 {[%emt 0:00:53]} 18. Bxe5 {[%emt 0:00:17]} Qxe5 {[%emt 0:00:19]} 19. Nxe5 {[%emt 0:00:02]} Bxe2 {[%emt 0:00:05]} 20. Rfe1 {[%emt 0:00:09]} Ba6 {[%emt 0:04:18]} 21. Nxc6 {[%emt 0:08:49]} Bb7 {[%emt 0:01:48]} 22. Ne5 {[%emt 0:00:58]} Rd8 {[%emt 0:00:34]} 23. Red1 {[%emt 0:01:11]} Ke7 {[%emt 0:00:36]} 24. Nc4 {[%emt 0:05:41]} Ra8 {[%emt 0:02:07]} 25. Rd2 {[%emt 0:01:19]} Rhd8 {[%emt 0:02:29]} 26. Rad1 {[%emt 0:01:08]} Rxd2 {[%emt 0:04:11]} 27. Rxd2 {[%emt 0:00:12]} Bc6 {[%emt 0:05:56]} 28. Ne5 {[%emt 0:01:50]} Rc8 {[%emt 0:03:56]} 29. Nxc6+ {[%emt 0:00:58]} Rxc6 {[%emt 0:00:11]} 30. Kf1 {[%emt 0:00:07]} Ra6 {[%emt 0:00:09]} 31. Ke2 {[%emt 0:02:19]} a4 {[%emt 0:00:26]} 32. Rd4 {[%emt 0:00:42]} axb3 {[%emt 0:00:19]} 33. axb3 {[%emt 0:00:08]} Rd6 {[%emt 0:00:46]} 34. Rxd6 {[%emt 0:00:20]} Kxd6 {[%emt 0:00:07]} 35. Kd2 {[%emt 0:00:16]} Kc5 {[%emt 0:00:07]} 36. Kc3 {[%emt 0:00:55]} e5 {[%emt 0:00:22]} 37. h4 {[%emt 0:02:20]} h5 {[%emt 0:00:17]} 38. g3 {[%emt 0:00:03]} Kb5 {[%emt 0:00:07]} 39. b4 {[%emt 0:00:17]} Kc6 {[%emt 0:00:10]} 40. Kc4 {[%emt 0:00:08]} Kb6 {[%emt 0:00:47]} 41. Kd5 {[%emt 0:30:39]} Kb5 {[%emt 0:30:09]} 42. c4+ {[%emt 0:00:11]} Kxb4 {[%emt 0:01:47]} 43. c5 {[%emt 0:00:06]} Kb5 {[%emt 0:00:21]} 44. c6 {[%emt 0:01:12]} Kb6 {[%emt 0:00:28]} 45. Kd6 {[%emt 0:00:07]} Kb5 {[%emt 0:01:59]} 46. c7 {[%emt 0:00:05]} Kc4 {[%emt 0:00:07]} 47. Kxe5 {[%emt 0:00:28]} Kd3 {[%emt 0:00:20]} 48. c8=Q {[%emt 0:00:13]} Ke2 {[%emt 0:00:27]} 49. Qc2+ {[%emt 0:00:35]} Kf3 {[%emt 0:00:10]} 50. Kf6 {[%emt 0:00:21]} Kg2 {[%emt 0:00:30]} 51. Kxg6 {[%emt 0:00:06]} Kh3 {[%emt 0:00:06]} 52. Kxh5 {[%emt 0:00:27]} Kg2 {[%emt 0:00:13]} 53. Qe2 {[%emt 0:00:31]} Kh2 {[%emt 0:00:14]} 54. g4 {[%emt 0:01:32]} Kh3 {[%emt 0:01:13]} 55. g5 {[%emt 0:00:51]} Kg2 {[%emt 0:00:17]} 56. g6 {[%emt 0:00:21]} Kh3 {[%emt 0:00:31]} 57. g7 {[%emt 0:00:03]} Kh2 {[%emt 0:00:27]} 58. g8=R {[%emt 0:00:11]} Kh3 {[%emt 0:00:10]} 59. Qf1+ {[%emt 0:00:05]} Kh2 {[%emt 0:00:19]} 60. Qg2# {normal} 1-0

[Event "DVM U20w 2019"]
[Site "Braunschweig"]
[Date "2019.12.27"]
[Round "2"]
[White "Puls, Luisa"]
[Black "Birner, Lucy Jasmin"]
[Result "1-0"]
[ECO "C44"]
[WhiteElo "1551"]
[BlackElo "1611"]
[Annotator "NA"]
[PlyCount "89"]
[EventDate "2019.12.27"]
[EventType "team-tourn"]
[EventRounds "7"]
[EventCountry "GER"]
[SourceTitle "playchess.com"]
[Source "ChessBase"]
[SourceQuality "1"]
[WhiteTeam "SG Güstrow/Teterow"]
[BlackTeam "SK Doppelbauer Kiel"]
[TimeControl "40/5400+30:1800+30"]

1. e4 {[%emt 0:00:00]} e5 {[%emt 0:00:00]} 2. Nf3 {[%emt 0:00:00]} Nc6 {[%emt 0:00:00]} 3. d4 {[%emt 0:00:00]} exd4 {[%emt 0:01:33]} 4. Nxd4 {[%emt 0:00:00]} Nxd4 5. Qxd4 {[%emt 0:00:00]} d6 {[%emt 0:01:01]} 6. Nc3 {[%emt 0:01:30]} Be6 {[%emt 0:00:51]} 7. Be3 {[%emt 0:02:53]} Nf6 {[%emt 0:01:33]} 8. Be2 {[%emt 0:01:53]} g6 {[%emt 0:01:26]} 9. O-O {[%emt 0:09:20]} Bg7 {[%emt 0:00:23]} 10. Rfd1 {[%emt 0:06:54]} O-O {[%emt 0:00:47]} 11. Qb4 {[%emt 0:05:16]} b6 {[%emt 0:01:33]} 12. Bf3 {[%emt 0:05:09]} Ng4 {[%emt 0:06:16]} 13. e5 {[%emt 0:05:47]} Nxe3 {[%emt 0:06:19]} 14. fxe3 {[%emt 0:01:20]} c5 {[%emt 0:00:40]} 15. Qa3 {[%emt 0:03:02]} Rb8 {[%emt 0:01:03]} 16. exd6 {[%emt 0:05:04]} Qd7 {[%emt 0:02:09]} 17. Be2 {[%emt 0:12:47]} Rfd8 {[%emt 0:04:12]} 18. Nb5 {[%emt 0:09:03]} a5 {[%emt 0:01:02]} 19. Rd2 {[%emt 0:02:39]} Qc6 {[%emt 0:02:39]} 20. Rad1 {[%emt 0:05:20]} Qe4 {[%emt 0:03:08]} 21. Bf3 {[%emt 0:03:01]} Qc4 {[%emt 0:04:23]} 22. Na7 {[%emt 0:02:19]} Bd7 {[%emt 0:00:26]} 23. Bd5 {[%emt 0:03:10]} Qh4 {[%emt 0:01:43]} 24. Qb3 {[%emt 0:05:15]} Rf8 {[%emt 0:01:32]} 25. Nc6 {[%emt 0:01:14]} Bxc6 {[%emt 0:00:31]} 26. Bxc6 {[%emt 0:00:07]} Be5 {[%emt 0:01:09]} 27. g3 {[%emt 0:01:15]} Qg5 {[%emt 0:01:05]} 28. Rd5 {[%emt 0:02:54]} Kg7 {[%emt 0:02:37]} 29. d7 {[%emt 0:02:04]} Rfd8 {[%emt 0:01:48]} 30. Rf1 {[%emt 0:01:01]} h5 {[%emt 0:01:36]} 31. Rxf7+ {[%emt 0:01:21]} Kh6 {[%emt 0:00:25]} 32. Qd3 {[%emt 0:00:51]} h4 {[%emt 0:04:46]} 33. Qe4 {[%emt 0:00:36]} hxg3 {[%emt 0:00:21]} 34. Rxe5 {[%emt 0:01:11]} gxh2+ {[%emt 0:00:45]} 35. Kxh2 {[%emt 0:00:07]} Qxe5+ {[%emt 0:01:10]} 36. Qxe5 {[%emt 0:00:08]} Rg8 {[%emt 0:01:23]} 37. Qf4+ {[%emt 0:00:26]} g5 {[%emt 0:00:20]} 38. Qe4 {[%emt 0:00:43]} g4 {[%emt 0:00:48]} 39. Qh7+ {[%emt 0:00:26]} Kg5 {[%emt 0:00:11]} 40. Rg7+ {[%emt 0:00:19]} Rxg7 {[%emt 0:00:15]} 41. Qxg7+ {[%emt 0:30:05]} Kf5 {[%emt 0:30:07]} 42. Qf7+ {[%emt 0:00:34]} Kg5 {[%emt 0:00:28]} 43. Qe7+ {[%emt 0:00:13]} Kf5 {[%emt 0:00:11]} 44. d8=Q {[%emt 0:00:09]} Rxd8 {[%emt 0:00:10]} 45. Qxd8 {[%emt 0:00:00] normal Kg5} 1-0

[Event "DVM U20w 2019"]
[Site "Braunschweig"]
[Date "2019.12.27"]
[Round "2"]
[White "Caliebe, Nanke"]
[Black "Danilova, Sofia"]
[Result "1-0"]
[ECO "A48"]
[WhiteElo "1538"]
[BlackElo "980"]
[Annotator "NA"]
[PlyCount "87"]
[EventDate "2019.12.27"]
[EventType "team-tourn"]
[EventRounds "7"]
[EventCountry "GER"]
[SourceTitle "playchess.com"]
[Source "ChessBase"]
[SourceQuality "1"]
[WhiteTeam "TuRa Harksheide Norderstedt"]
[BlackTeam "SV Lingen"]
[TimeControl "40/5400+30:1800+30"]

1. d4 {[%emt 0:00:00]} g6 {[%emt 0:00:00]} 2. Nf3 {[%emt 0:00:00]} Nf6 {[%emt 0:00:00]} 3. Bf4 {[%emt 0:00:20]} Bg7 {[%emt 0:00:25]} 4. e3 {[%emt 0:01:05]} O-O {[%emt 0:00:22]} 5. h3 {[%emt 0:02:25]} d5 {[%emt 0:00:50]} 6. c4 {[%emt 0:04:03]} c6 {[%emt 0:01:35]} 7. Nc3 {[%emt 0:05:55]} Bf5 {[%emt 0:01:42]} 8. Be2 {[%emt 0:05:33]} Nbd7 {[%emt 0:01:03]} 9. Qb3 {[%emt 0:05:05]} Nb6 {[%emt 0:01:06]} 10. c5 {[%emt 0:05:37]} Nc4 {[%emt 0:00:55]} 11. Bxc4 {[%emt 0:04:49]} dxc4 {[%emt 0:00:09]} 12. Qxc4 {[%emt 0:03:02]} b5 {[%emt 0:00:23]} 13. cxb6 {[%emt 0:03:55]} Qxb6 {[%emt 0:02:19]} 14. b3 {[%emt 0:04:15]} Rac8 {[%emt 0:02:19]} 15. O-O {[%emt 0:03:04]} c5 {[%emt 0:01:21]} 16. Na4 {[%emt 0:02:24]} Qa5 {[%emt 0:02:57]} 17. Nxc5 {[%emt 0:03:52]} Qa3 {[%emt 0:05:25]} 18. Qa4 {[%emt 0:05:29]} Qxa4 {[%emt 0:00:13]} 19. Nxa4 {[%emt 0:00:44]} Ne4 {[%emt 0:00:48]} 20. Rac1 {[%emt 0:06:56]} Rfd8 {[%emt 0:05:08]} 21. Rfd1 {[%emt 0:10:50]} Bf6 {[%emt 0:02:14]} 22. Nb2 {[%emt 0:09:13]} Nc3 {[%emt 0:05:02]} 23. Re1 {[%emt 0:03:52]} Nxa2 {[%emt 0:01:06]} 24. Ra1 {[%emt 0:01:17]} Nb4 {[%emt 0:01:38]} 25. Rxa7 {[%emt 0:03:01]} Rc2 {[%emt 0:02:58]} 26. Nc4 {[%emt 0:01:51]} Rc8 {[%emt 0:03:52]} 27. e4 {[%emt 0:02:01]} Be6 {[%emt 0:00:45]} 28. d5 {[%emt 0:00:19]} Nd3 {[%emt 0:02:04]} 29. dxe6 {[%emt 0:01:36]} Nxe1 {[%emt 0:00:56]} 30. exf7+ {[%emt 0:00:06]} Kxf7 {[%emt 0:01:00]} 31. Nxe1 {[%emt 0:00:15]} Bd4 {[%emt 0:05:16]} 32. Rxe7+ {[%emt 0:00:40]} Kxe7 {[%emt 0:00:12]} 33. Nxc2 {[%emt 0:00:07]} Bc5 {[%emt 0:03:15]} 34. N2e3 {[%emt 0:00:43]} Ra8 {[%emt 0:02:51]} 35. Nd5+ {[%emt 0:00:27]} Kf7 {[%emt 0:02:03]} 36. Ne5+ {[%emt 0:01:36]} Kg7 {[%emt 0:00:14]} 37. b4 {[%emt 0:00:36]} Ra1+ {[%emt 0:00:55]} 38. Kh2 {[%emt 0:00:05]} Bxf2 {[%emt 0:00:16]} 39. Be3 {[%emt 0:00:47]} Bh4 {[%emt 0:01:16]} 40. Nf3 {[%emt 0:00:18]} Bd8 {[%emt 0:01:06]} 41. Bd4+ {[%emt 0:30:10]} Kh6 {[%emt 0:30:52]} 42. Bxa1 {[%emt 0:00:11]} Kh5 {[%emt 0:00:52]} 43. Bg7 {[%emt 0:01:15]} h6 {[%emt 0:01:56]} 44. Nf4# {[%emt 0:00:13] normal} 1-0

[Event "DVM U20w 2019"]
[Site "Braunschweig"]
[Date "2019.12.27"]
[Round "2"]
[White "Hallfarth, Luise"]
[Black "Nanthivarman, Merymuthu"]
[Result "1-0"]
[ECO "B35"]
[WhiteElo "1517"]
[BlackElo "1260"]
[Annotator "NA"]
[PlyCount "89"]
[EventDate "2019.12.27"]
[EventType "team-tourn"]
[EventRounds "7"]
[EventCountry "GER"]
[SourceTitle "playchess.com"]
[Source "ChessBase"]
[SourceQuality "1"]
[WhiteTeam "SK Nordhorn-Blanke"]
[BlackTeam "OSG Baden-Baden"]
[TimeControl "40/5400+30:1800+30"]

1. e4 {[%emt 0:00:00]} c5 {[%emt 0:00:00]} 2. Nf3 {[%emt 0:00:00]} Nc6 {[%emt 0:00:00]} 3. d4 {[%emt 0:00:00]} cxd4 {[%emt 0:00:00]} 4. Nxd4 {[%emt 0:00:00]} g6 {[%emt 0:00:00]} 5. Nc3 {[%emt 0:00:57]} Bg7 {[%emt 0:00:00]} 6. Be3 {[%emt 0:00:08]} Nf6 {[%emt 0:00:15]} 7. Bc4 {[%emt 0:01:29]} O-O {[%emt 0:00:47]} 8. Bb3 {[%emt 0:00:25]} d6 {[%emt 0:05:05]} 9. Qd2 {[%emt 0:03:28]} Ng4 {[%emt 0:00:56]} 10. Nxc6 {[%emt 0:04:50]} bxc6 {[%emt 0:00:13]} 11. Bd4 {[%emt 0:00:51]} e5 {[%emt 0:03:41]} 12. Be3 {[%emt 0:00:23]} Nxe3 {[%emt 0:00:28]} 13. Qxe3 {[%emt 0:00:08]} Bb7 {[%emt 0:01:18]} 14. Rd1 {[%emt 0:02:02]} Qc7 {[%emt 0:04:37]} 15. h4 {[%emt 0:01:01]} c5 {[%emt 0:10:28]} 16. Nd5 {[%emt 0:04:01]} Qd7 {[%emt 0:05:00]} 17. h5 {[%emt 0:00:27]} gxh5 {[%emt 0:01:23]} 18. Rxh5 {[%emt 0:00:44]} Qg4 {[%emt 0:00:57]} 19. Rg5 {[%emt 0:01:34]} Qh4 {[%emt 0:01:12]} 20. Kd2 {[%emt 0:03:32]} Kh8 {[%emt 0:00:53]} 21. Qg3 {[%emt 0:04:28]} Qxg3 {[%emt 0:00:32]} 22. Rxg3 {[%emt 0:00:12]} Bh6+ {[%emt 0:01:07]} 23. Kd3 {[%emt 0:01:06]} Bxd5 24. Bxd5 {[%emt 0:00:34]} Rab8 {[%emt 0:03:57]} 25. Rh3 {[%emt 0:00:29]} Rfd8 {[%emt 0:17:04]} 26. Rxh6 {[%emt 0:00:00]} Kg7 {[%emt 0:00:59]} 27. Rdh1 {[%emt 0:00:13]} Rh8 {[%emt 0:08:30]} 28. Rxd6 {[%emt 0:00:45]} Rxb2 {[%emt 0:01:45]} 29. Ra6 {[%emt 0:00:43]} Rbb8 {[%emt 0:07:01]} 30. Rxa7 {[%emt 0:00:23]} Rbf8 {[%emt 0:00:56]} 31. Rc7 {[%emt 0:00:29]} Kg6 {[%emt 0:00:48]} 32. a4 {[%emt 0:01:07]} f5 {[%emt 0:00:18]} 33. f3 {[%emt 0:00:31]} fxe4+ {[%emt 0:00:24]} 34. Bxe4+ {[%emt 0:00:14]} Kf6 {[%emt 0:00:29]} 35. Rxc5 {[%emt 0:00:56]} Rfg8 {[%emt 0:00:52]} 36. Rc6+ {[%emt 0:00:48]} Ke7 {[%emt 0:00:21]} 37. a5 {[%emt 0:00:14]} Rxg2 {[%emt 0:00:19]} 38. a6 {[%emt 0:00:14]} Rgg8 {[%emt 0:00:25]} 39. a7 {[%emt 0:00:26]} Rd8+ {[%emt 0:01:35]} 40. Kc3 {[%emt 0:00:17]} Rc8 {[%emt 0:00:48]} 41. Rxc8 {[%emt 0:30:32]} Rxc8+ {[%emt 0:30:06]} 42. Kd3 {[%emt 0:00:21]} Rg8 {[%emt 0:00:52]} 43. Rxh7+ {[%emt 0:00:25]} Kf6 {[%emt 0:00:24]} 44. a8=Q {[%emt 0:00:09]} Rxa8 {[%emt 0:00:07]} 45. Bxa8 {[%emt 0:00:08] normal} 1-0

[Event "DVM U20w 2019"]
[Site "Braunschweig"]
[Date "2019.12.27"]
[Round "2"]
[White "Malinowsky, Celina"]
[Black "Zoll, Cindy"]
[Result "1-0"]
[ECO "C01"]
[WhiteElo "1293"]
[BlackElo "1387"]
[Annotator "NA"]
[PlyCount "23"]
[EventDate "2019.12.27"]
[EventType "team-tourn"]
[EventRounds "7"]
[EventCountry "GER"]
[SourceTitle "playchess.com"]
[Source "ChessBase"]
[SourceQuality "1"]
[WhiteTeam "SK Doppelbauer Kiel"]
[BlackTeam "SG Güstrow/Teterow"]
[TimeControl "40/5400+30:1800+30"]

1. e4 e6 2. d4 d5 3. exd5 exd5 4. Bd3 Bd6 5. Nf3 Bg4 6. Nbd2 Nf6 7. O-O O-O 8. Re1 Nc6 9. c3 Re8 10. Qc2 Qd7 11. h3 Bh5 12. Kf1 {normal} 1-0

[Event "DVM U20w 2019"]
[Site "Braunschweig"]
[Date "2019.12.27"]
[Round "2"]
[White "Kessen, Fanny"]
[Black "Sereda, Yaroslava"]
[Result "1/2-1/2"]
[ECO "B25"]
[WhiteElo "1265"]
[BlackElo "1726"]
[Annotator "NA"]
[PlyCount "109"]
[EventDate "2019.12.27"]
[EventType "team-tourn"]
[EventRounds "7"]
[EventCountry "GER"]
[SourceTitle "playchess.com"]
[Source "ChessBase"]
[SourceQuality "1"]
[WhiteTeam "SC Borussia Lichtenberg"]
[BlackTeam "SG Solingen"]
[TimeControl "40/5400+30:1800+30"]

1. e4 {[%emt 0:00:00]} c5 {[%emt 0:00:00]} 2. d3 {[%emt 0:00:00]} Nc6 {[%emt 0:00:31]} 3. Nc3 {[%emt 0:00:14]} d6 {[%emt 0:00:35]} 4. g3 {[%emt 0:00:22]} g6 {[%emt 0:00:10]} 5. Bg2 {[%emt 0:00:18]} Bg7 {[%emt 0:00:11]} 6. Nge2 {[%emt 0:01:37]} Nf6 {[%emt 0:01:00]} 7. O-O {[%emt 0:00:25]} O-O {[%emt 0:00:32]} 8. h3 {[%emt 0:02:40]} Bd7 {[%emt 0:18:14]} 9. Be3 {[%emt 0:03:18]} Ne8 {[%emt 0:24:33]} 10. Qd2 {[%emt 0:06:57]} Nc7 {[%emt 0:04:09]} 11. Bh6 {[%emt 0:04:55]} Ne6 {[%emt 0:03:26]} 12. Bxg7 {[%emt 0:03:16]} Kxg7 {[%emt 0:00:24]} 13. f4 {[%emt 0:05:35]} Ned4 {[%emt 0:09:07]} 14. Nd1 {[%emt 0:02:34]} Nxe2+ {[%emt 0:10:11]} 15. Qxe2 {[%emt 0:00:12]} Qb6 {[%emt 0:02:17]} 16. Kh1 {[%emt 0:04:55]} Nd4 {[%emt 0:03:11]} 17. Qd2 {[%emt 0:03:16]} f5 {[%emt 0:04:28]} 18. c3 {[%emt 0:03:03]} Nc6 {[%emt 0:00:44]} 19. Ne3 {[%emt 0:02:45]} e6 {[%emt 0:02:36]} 20. Nc4 {[%emt 0:05:14]} Qc7 {[%emt 0:00:22]} 21. Rae1 {[%emt 0:04:47]} b5 {[%emt 0:02:03]} 22. Ne3 {[%emt 0:02:50]} Rae8 {[%emt 0:02:37]} 23. Nc2 {[%emt 0:03:20]} Ne7 {[%emt 0:03:31]} 24. Kh2 {[%emt 0:04:18]} Bc6 {[%emt 0:03:01]} 25. Qd1 {[%emt 0:04:19]} Qb7 {[%emt 0:01:35]} 26. Qe2 {[%emt 0:03:29]} a5 {[%emt 0:01:42]} 27. b4 {[%emt 0:05:19]} axb4 {[%emt 0:01:29]} 28. cxb4 {[%emt 0:00:52]} Qa8 {[%emt 0:00:44]} 29. Ra1 {[%emt 0:02:34]} Qb7 {[%emt 0:00:29]} 30. Rfe1 {[%emt 0:01:46]} Ng8 {[%emt 0:00:32]} 31. Qd2 {[%emt 0:02:11]} Qa8 {[%emt 0:00:31]} 32. Qc3+ {[%emt 0:00:57]} Nf6 {[%emt 0:00:13]} 33. bxc5 {[%emt 0:04:46]} dxc5 {[%emt 0:00:30]} 34. Qxc5 {[%emt 0:02:02]} fxe4 {[%emt 0:00:42]} 35. dxe4 {[%emt 0:01:01]} Bxe4 {[%emt 0:00:32]} 36. Bxe4 {[%emt 0:01:27]} Nxe4 {[%emt 0:00:11]} 37. Qxb5 {[%emt 0:00:40]} e5 {[%emt 0:00:48]} 38. Qb2 {[%emt 0:01:38]} Rf6 {[%emt 0:00:34]} 39. Rad1 {[%emt 0:04:26]} Kh8 {[%emt 0:00:30]} 40. fxe5 {[%emt 0:01:47]} Rf2+ {[%emt 0:00:25]} 41. Kg1 {[%emt 0:30:42]} Qa7 {[%emt 0:18:25]} 42. Qd4 {[%emt 0:00:00]} Qxa2 {[%emt 0:06:42]} 43. Qxe4 {[%emt 0:00:00]} Rxc2 {[%emt 0:01:41]} 44. Qf3 {[%emt 0:00:00]} Qa7+ {[%emt 0:03:50]} 45. Qe3 {[%emt 0:00:00]} Qb7 {[%emt 0:00:53]} 46. Rd2 {[%emt 0:00:00]} Rec8 {[%emt 0:01:12]} 47. e6 {[%emt 0:00:00]} Rxd2 {[%emt 0:00:48]} 48. Qxd2 {[%emt 0:00:00]} Qa7+ {[%emt 0:00:29]} 49. Qe3 {[%emt 0:00:00]} Qxe3+ {[%emt 0:00:31]} 50. Rxe3 {[%emt 0:00:00]} Re8 {[%emt 0:00:22]} 51. Kf2 {[%emt 0:00:00]} Kg7 {[%emt 0:00:17]} 52. Kf3 {[%emt 0:00:00]} Kf6 {[%emt 0:00:40]} 53. Kg4 {[%emt 0:00:00]} h6 {[%emt 0:00:29]} 54. h4 {[%emt 0:02:30]} Rxe6 {[%emt 0:00:37]} 55. Rxe6+ {[%emt 0:02:39] normal} 1/2-1/2

[Event "DVM U20w 2019"]
[Site "Braunschweig"]
[Date "2019.12.27"]
[Round "2"]
[White "Stephan, Lia"]
[Black "Oberhofer, Marie"]
[Result "0-1"]
[ECO "B23"]
[WhiteElo "1232"]
[BlackElo "1700"]
[Annotator "NA"]
[PlyCount "55"]
[EventDate "2019.12.27"]
[EventType "team-tourn"]
[EventRounds "7"]
[EventCountry "GER"]
[SourceTitle "playchess.com"]
[Source "ChessBase"]
[SourceQuality "1"]
[WhiteTeam "SG Blau-Weiß Stadtilm"]
[BlackTeam "SC Bavaria Regensburg"]
[TimeControl "40/5400+30:1800+30"]

1. e4 {[%emt 0:00:00]} c5 {[%emt 0:00:00]} 2. Nc3 {[%emt 0:00:07]} Nc6 {[%emt 0:00:00]} 3. Nge2 {[%emt 0:01:05]} g6 {[%emt 0:01:03]} 4. g3 {[%emt 0:01:19]} Bg7 {[%emt 0:00:07]} 5. Bg2 {[%emt 0:04:11]} d6 {[%emt 0:00:56]} 6. d3 {[%emt 0:07:06]} e6 {[%emt 0:02:37]} 7. h4 {[%emt 0:00:43]} h5 {[%emt 0:03:16]} 8. O-O {[%emt 0:07:28]} Nge7 {[%emt 0:03:29]} 9. Be3 {[%emt 0:12:30]} O-O {[%emt 0:03:45]} 10. Qd2 {[%emt 0:05:15]} Nd4 {[%emt 0:02:28]} 11. Nf4 {[%emt 0:09:40]} Rb8 {[%emt 0:04:44]} 12. Nce2 {[%emt 0:06:27]} Nxe2+ 13. Qxe2 {[%emt 0:02:26]} Bxb2 {[%emt 0:01:03]} 14. Rab1 {[%emt 0:00:55]} Bg7 {[%emt 0:00:22]} 15. Nh3 {[%emt 0:07:12]} Qc7 {[%emt 0:06:22]} 16. f4 {[%emt 0:06:36]} Bd7 {[%emt 0:05:30]} 17. c4 {[%emt 0:03:27]} b5 {[%emt 0:02:42]} 18. cxb5 {[%emt 0:11:41]} Bxb5 {[%emt 0:00:58]} 19. Rfc1 {[%emt 0:01:43]} Bd7 {[%emt 0:01:50]} 20. Rxb8 {[%emt 0:02:24]} Rxb8 {[%emt 0:00:11]} 21. Rc2 {[%emt 0:02:55]} Qa5 {[%emt 0:04:31]} 22. Qd2 {[%emt 0:01:43]} Qxd2 {[%emt 0:01:22]} 23. Rxd2 {[%emt 0:00:14]} Nc6 {[%emt 0:01:41]} 24. Ng5 {[%emt 0:02:43]} Rb2 {[%emt 0:05:22]} 25. Rxb2 {[%emt 0:00:20]} Bxb2 {[%emt 0:00:07]} 26. e5 {[%emt 0:00:43]} dxe5 {[%emt 0:00:37]} 27. Bxc6 {[%emt 0:00:30]} Bxc6 {[%emt 0:00:11]} 28. Bxc5 {[%emt 0:00:36] normal} 0-1